[Event "Titled Tuesday Blitz January 10 Early 2023"]
[White "Jaskolka, Tomasz"]
[Black "Jakubowski, Krzysztof"]
[WhiteFideId "1170791"]
[BlackFideId "1112848"]
[WhiteElo "2238"]
[BlackElo "2486"]
[Result "1-0"]
[Round "03"]
[TimeControl "180+2"]
[Date "2023.01.10"]
[WhiteClock "0:00:06"]
[BlackClock "0:00:08"]

1. d4 {[%clk 0:03:00]}  Nf6 {[%clk 0:02:57]} 2. c4 {[%clk 0:03:01]}  e6 {[%clk 0:02:57]} 3. g3 {[%clk 0:03:01]}  d5 {[%clk 0:02:55]} 4. Bg2 {[%clk 0:03:00]}  Bb4+ {[%clk 0:02:54]} 5. Nd2 {[%clk 0:02:59]}  O-O {[%clk 0:02:53]} 6. Nf3 {[%clk 0:03:00]}  dxc4 {[%clk 0:02:51]} 7. O-O {[%clk 0:02:59]}  c3 {[%clk 0:02:40]} 8. bxc3 {[%clk 0:02:58]}  Bxc3 {[%clk 0:02:41]} 9. Rb1 {[%clk 0:02:58]}  Nc6 {[%clk 0:02:34]} 10. e3 {[%clk 0:02:49]}  Ba5 {[%clk 0:02:25]} 11. Qc2 {[%clk 0:02:38]}  Bb6 {[%clk 0:02:18]} 12. Ba3 {[%clk 0:02:29]}  Re8 {[%clk 0:02:17]} 13. Nc4 {[%clk 0:02:28]}  Bd7 {[%clk 0:02:15]} 14. Rfc1 {[%clk 0:02:20]}  Rc8 {[%clk 0:02:10]} 15. h4 {[%clk 0:02:11]}  Ne7 {[%clk 0:01:54]} 16. Nce5 {[%clk 0:02:05]}  Bc6 {[%clk 0:01:49]} 17. Bxe7 {[%clk 0:01:09]}  Qxe7 {[%clk 0:01:43]} 18. Nxc6 {[%clk 0:01:09]}  bxc6 {[%clk 0:01:43]} 19. Qxc6 {[%clk 0:01:10]}  Qa3 {[%clk 0:01:35]} 20. Ne5 {[%clk 0:01:00]}  Qxa2 {[%clk 0:01:23]} 21. Ra1 {[%clk 0:00:41]}  Qd2 {[%clk 0:01:20]} 22. Rc2 {[%clk 0:00:36]}  Qb4 {[%clk 0:01:19]} 23. Qf3 {[%clk 0:00:34]}  Qd6 {[%clk 0:00:45]} 24. g4 {[%clk 0:00:34]}  Rf8 {[%clk 0:00:44]} 25. Rc6 {[%clk 0:00:30]}  Qb4 {[%clk 0:00:37]} 26. Rac1 {[%clk 0:00:28]}  a5 {[%clk 0:00:34]} 27. g5 {[%clk 0:00:28]}  Nd5 {[%clk 0:00:33]} 28. Bh3 {[%clk 0:00:28]}  Qe7 {[%clk 0:00:30]} 29. Nxf7 {[%clk 0:00:25]}  Rxf7 {[%clk 0:00:29]} 30. Qe4 {[%clk 0:00:16]}  Kh8 {[%clk 0:00:19]} 31. Bxe6 {[%clk 0:00:16]}  Nb4 {[%clk 0:00:16]} 32. Rxb6 {[%clk 0:00:13]}  Rcf8 {[%clk 0:00:14]} 33. f4 {[%clk 0:00:08]}  cxb6 {[%clk 0:00:13]} 34. d5 {[%clk 0:00:04]}  Rd8 {[%clk 0:00:10]} 35. Qe5 {[%clk 0:00:04]}  Rff8 {[%clk 0:00:10]} 36. e4 {[%clk 0:00:04]}  Qd6 {[%clk 0:00:09]} 37. Qxd6 {[%clk 0:00:03]}  Rxd6 {[%clk 0:00:09]} 38. e5 {[%clk 0:00:03]}  Rxd5 {[%clk 0:00:10]} 39. Bxd5 {[%clk 0:00:03]}  Nxd5 {[%clk 0:00:10]} 40. f5 {[%clk 0:00:03]}  Kg8 {[%clk 0:00:09]} 41. f6 {[%clk 0:00:03]}  gxf6 {[%clk 0:00:09]} 42. exf6 {[%clk 0:00:03]}  Nxf6 {[%clk 0:00:09]} 43. gxf6 {[%clk 0:00:03]}  Rxf6 {[%clk 0:00:10]} 44. Rc7 {[%clk 0:00:04]}  Rh6 {[%clk 0:00:09]} 45. Rb7 {[%clk 0:00:03]}  a4 {[%clk 0:00:09]} 46. Kf2 {[%clk 0:00:04]}  Re6 {[%clk 0:00:09]} 47. Kf3 {[%clk 0:00:02]}  Rh6 {[%clk 0:00:07]} 48. Kg4 {[%clk 0:00:02]}  Kf8 {[%clk 0:00:07]} 49. Kg5 {[%clk 0:00:02]}  Rg6+ {[%clk 0:00:07]} 50. Kf5 {[%clk 0:00:03]}  Rc6 {[%clk 0:00:07]} 51. Rxh7 {[%clk 0:00:02]}  Ke8 {[%clk 0:00:07]} 52. Ra7 {[%clk 0:00:03]}  Kd8 {[%clk 0:00:06]} 53. h5 {[%clk 0:00:03]}  Kc8 {[%clk 0:00:07]} 54. Rxa4 {[%clk 0:00:03]}  Kb7 {[%clk 0:00:06]} 55. Re4 {[%clk 0:00:03]}  b5 {[%clk 0:00:04]} 56. Re7+ {[%clk 0:00:03]}  Kc8 {[%clk 0:00:03]} 57. Re6 {[%clk 0:00:02]}  Rc5+ {[%clk 0:00:03]} 58. Kg6 {[%clk 0:00:03]}  Kd7 {[%clk 0:00:03]} 59. Rb6 {[%clk 0:00:03]}  Kc7 {[%clk 0:00:04]} 60. Ra6 {[%clk 0:00:02]}  Kb7 {[%clk 0:00:04]} 61. Rf6 {[%clk 0:00:02]}  b4 {[%clk 0:00:04]} 62. h6 {[%clk 0:00:03]}  b3 {[%clk 0:00:03]} 63. h7 {[%clk 0:00:02]}  Rc8 {[%clk 0:00:02]} 64. Rf3 {[%clk 0:00:02]}  Rc6+ {[%clk 0:00:03]} 65. Kg7 {[%clk 0:00:02]}  Rc7+ {[%clk 0:00:03]} 66. Kg6 {[%clk 0:00:02]}  Rc6+ {[%clk 0:00:04]} 67. Kg5 {[%clk 0:00:03]}  Rc5+ {[%clk 0:00:04]} 68. Kg4 {[%clk 0:00:03]}  Rc4+ {[%clk 0:00:04]} 69. Kg3 {[%clk 0:00:03]}  Rc8 {[%clk 0:00:04]} 70. Rxb3+ {[%clk 0:00:04]}  Ka6 {[%clk 0:00:05]} 71. Kg4 {[%clk 0:00:04]}  Rh8 {[%clk 0:00:05]} 72. Rh3 {[%clk 0:00:05]}  Kb6 {[%clk 0:00:06]} 73. Kg5 {[%clk 0:00:05]}  Kc6 {[%clk 0:00:07]} 74. Kg6 {[%clk 0:00:06]}  Kd7 {[%clk 0:00:08]} 75. Kg7 {[%clk 0:00:06]} 1-0


[Site "https://www.chess.com"]

[Event "Titled Tuesday Blitz January 10 Early 2023"]
[White "Khumalo, Keith"]
[Black "Papayan, Oleg"]
[WhiteFideId "14319470"]
[BlackFideId "4193911"]
[WhiteElo "2099"]
[BlackElo "2253"]
[Result "1-0"]
[Round "03"]
[TimeControl "180+2"]
[Date "2023.01.10"]
[WhiteClock "0:01:02"]
[BlackClock "0:00:02"]

1. d4 {[%clk 0:03:00]}  Nf6 {[%clk 0:02:59]} 2. c4 {[%clk 0:03:00]}  e6 {[%clk 0:02:59]} 3. Nf3 {[%clk 0:03:00]}  d5 {[%clk 0:02:59]} 4. g3 {[%clk 0:03:00]}  dxc4 {[%clk 0:02:57]} 5. Bg2 {[%clk 0:03:00]}  c5 {[%clk 0:02:58]} 6. O-O {[%clk 0:03:01]}  Nc6 {[%clk 0:02:58]} 7. dxc5 {[%clk 0:03:01]}  Qxd1 {[%clk 0:02:57]} 8. Rxd1 {[%clk 0:03:02]}  Bxc5 {[%clk 0:02:58]} 9. Nbd2 {[%clk 0:03:03]}  c3 {[%clk 0:02:58]} 10. bxc3 {[%clk 0:03:04]}  O-O {[%clk 0:02:59]} 11. Nb3 {[%clk 0:03:05]}  Be7 {[%clk 0:03:00]} 12. c4 {[%clk 0:03:05]}  Bd7 {[%clk 0:02:59]} 13. Bb2 {[%clk 0:03:05]}  Rfc8 {[%clk 0:02:59]} 14. Rac1 {[%clk 0:02:55]}  Be8 {[%clk 0:02:58]} 15. Ne5 {[%clk 0:02:53]}  Nxe5 {[%clk 0:02:44]} 16. Bxe5 {[%clk 0:02:52]}  Bc6 {[%clk 0:02:44]} 17. Bxc6 {[%clk 0:02:50]}  Rxc6 {[%clk 0:02:39]} 18. Na5 {[%clk 0:02:50]}  Ra6 {[%clk 0:02:16]} 19. Nxb7 {[%clk 0:02:31]}  Rxa2 {[%clk 0:02:14]} 20. Bxf6 {[%clk 0:02:31]}  gxf6 {[%clk 0:01:21]} 21. c5 {[%clk 0:02:30]}  Rc8 {[%clk 0:01:14]} 22. c6 {[%clk 0:02:28]}  Kf8 {[%clk 0:00:52]} 23. e3 {[%clk 0:01:52]}  Ke8 {[%clk 0:00:44]} 24. Rd4 {[%clk 0:01:51]}  Rc7 {[%clk 0:00:21]} 25. Rh4 {[%clk 0:01:42]}  Ra6 {[%clk 0:00:19]} 26. Rxh7 {[%clk 0:01:28]}  Raxc6 {[%clk 0:00:16]} 27. Rh8+ {[%clk 0:01:28]}  Bf8 {[%clk 0:00:16]} 28. Nd6+ {[%clk 0:01:24]}  Ke7 {[%clk 0:00:10]} 29. Rxc6 {[%clk 0:01:23]}  Rxc6 {[%clk 0:00:11]} 30. Ne4 {[%clk 0:01:20]}  f5 {[%clk 0:00:11]} 31. Ng5 {[%clk 0:01:18]}  Bg7 {[%clk 0:00:06]} 32. Ra8 {[%clk 0:01:17]}  Ra6 {[%clk 0:00:02]} 33. h4 {[%clk 0:01:17]}  Ra1+ {[%clk 0:00:01]} 34. Kg2 {[%clk 0:01:18]}  Kf6 {[%clk 0:00:01]} 35. Rb8 {[%clk 0:01:16]}  Kg6 {[%clk 0:00:01]} 36. Rb7 {[%clk 0:01:13]}  a5 {[%clk 0:00:01]} 37. Nxf7 {[%clk 0:01:12]}  a4 {[%clk 0:00:02]} 38. Nd8 {[%clk 0:01:05]}  a3 {[%clk 0:00:02]} 39. Nxe6 {[%clk 0:01:03]}  Bf6 {[%clk 0:00:02]} 40. Nf4+ {[%clk 0:01:03]}  Kh6 {[%clk 0:00:02]} 41. Rb6 {[%clk 0:01:03]}  a2 {[%clk 0:00:02]} 42. Rxf6+ {[%clk 0:01:03]}  Kg7 {[%clk 0:00:02]} 43. Ra6 {[%clk 0:01:04]}  Kh8 {[%clk 0:00:02]} 44. h5 {[%clk 0:01:02]} 1-0


[Site "https://www.chess.com"]

[Event "Titled Tuesday Blitz January 10 Early 2023"]
[White "Piesik, Piotr"]
[Black "Kazancev, Valerij M"]
[WhiteFideId "1136194"]
[BlackFideId "4179609"]
[WhiteElo "2426"]
[BlackElo "2313"]
[Result "1-0"]
[Round "03"]
[TimeControl "180+2"]
[Date "2023.01.10"]
[WhiteClock "0:02:09"]
[BlackClock "0:01:50"]

1. Nf3 {[%clk 0:03:00]}  e6 {[%clk 0:02:57]} 2. g3 {[%clk 0:03:01]}  g6 {[%clk 0:02:57]} 3. Bg2 {[%clk 0:03:01]}  Bg7 {[%clk 0:02:58]} 4. O-O {[%clk 0:03:02]}  Ne7 {[%clk 0:02:58]} 5. c4 {[%clk 0:03:02]}  a6 {[%clk 0:02:57]} 6. Nc3 {[%clk 0:03:01]}  d6 {[%clk 0:02:57]} 7. d4 {[%clk 0:03:01]}  h6 {[%clk 0:02:58]} 8. e4 {[%clk 0:03:01]}  Nd7 {[%clk 0:02:58]} 9. d5 {[%clk 0:03:01]}  O-O {[%clk 0:02:59]} 10. dxe6 {[%clk 0:03:00]}  fxe6 {[%clk 0:02:59]} 11. Nd4 {[%clk 0:03:00]}  Nb6 {[%clk 0:02:56]} 12. b3 {[%clk 0:02:57]}  c5 {[%clk 0:02:44]} 13. Nde2 {[%clk 0:02:57]}  Nc6 {[%clk 0:02:44]} 14. Be3 {[%clk 0:02:55]}  e5 {[%clk 0:02:42]} 15. Nd5 {[%clk 0:02:50]}  Nd4 {[%clk 0:02:42]} 16. Nxd4 {[%clk 0:02:48]}  exd4 {[%clk 0:02:29]} 17. Bf4 {[%clk 0:02:46]}  Nxd5 {[%clk 0:02:30]} 18. exd5 {[%clk 0:02:45]}  g5 {[%clk 0:02:31]} 19. Bd2 {[%clk 0:02:45]}  Bf5 {[%clk 0:02:31]} 20. f4 {[%clk 0:02:38]}  g4 {[%clk 0:02:31]} 21. Re1 {[%clk 0:02:38]}  Re8 {[%clk 0:02:31]} 22. Rxe8+ {[%clk 0:02:32]}  Qxe8 {[%clk 0:02:31]} 23. Qf1 {[%clk 0:02:33]}  Qg6 {[%clk 0:02:30]} 24. Re1 {[%clk 0:02:32]}  Re8 {[%clk 0:02:29]} 25. Rxe8+ {[%clk 0:02:29]}  Qxe8 {[%clk 0:02:30]} 26. Kf2 {[%clk 0:02:27]}  b5 {[%clk 0:02:27]} 27. Qe1 {[%clk 0:02:25]}  Qxe1+ {[%clk 0:02:16]} 28. Kxe1 {[%clk 0:02:26]}  Bb1 {[%clk 0:02:16]} 29. cxb5 {[%clk 0:02:23]}  axb5 {[%clk 0:02:16]} 30. a4 {[%clk 0:02:23]}  b4 {[%clk 0:01:54]} 31. a5 {[%clk 0:02:17]}  Bf5 {[%clk 0:01:50]} 32. a6 {[%clk 0:02:11]}  Bc8 {[%clk 0:01:50]} 33. Bf1 {[%clk 0:02:11]}  Bf6 {[%clk 0:01:50]} 34. Bb5 {[%clk 0:02:09]}  Bd8 {[%clk 0:01:50]} 35. a7 {[%clk 0:02:09]} 1-0


[Site "https://www.chess.com"]

[Event "Titled Tuesday Blitz January 10 Early 2023"]
[White "Sanchez, Robert"]
[Black "Bodnaruk, Anastasia"]
[WhiteFideId "2034360"]
[BlackFideId "4181751"]
[WhiteElo "1966"]
[BlackElo "2350"]
[Result "0-1"]
[Round "03"]
[TimeControl "180+2"]
[Date "2023.01.10"]
[WhiteClock "0:00:10"]
[BlackClock "0:00:09"]

1. e4 {[%clk 0:03:00]}  c5 {[%clk 0:02:59]} 2. Nf3 {[%clk 0:03:01]}  d6 {[%clk 0:02:59]} 3. d4 {[%clk 0:03:01]}  cxd4 {[%clk 0:02:59]} 4. Nxd4 {[%clk 0:03:02]}  Nf6 {[%clk 0:03:00]} 5. Nc3 {[%clk 0:03:03]}  a6 {[%clk 0:03:01]} 6. Be3 {[%clk 0:03:03]}  e5 {[%clk 0:03:00]} 7. Nb3 {[%clk 0:03:03]}  Be6 {[%clk 0:03:00]} 8. f3 {[%clk 0:03:04]}  Nbd7 {[%clk 0:03:00]} 9. Qd2 {[%clk 0:03:04]}  Be7 {[%clk 0:03:00]} 10. O-O-O {[%clk 0:03:04]}  O-O {[%clk 0:02:59]} 11. g4 {[%clk 0:03:05]}  b5 {[%clk 0:03:00]} 12. g5 {[%clk 0:03:05]}  Nh5 {[%clk 0:03:00]} 13. Kb1 {[%clk 0:03:03]}  b4 {[%clk 0:02:54]} 14. Nd5 {[%clk 0:03:03]}  Bxd5 {[%clk 0:02:54]} 15. exd5 {[%clk 0:03:03]}  a5 {[%clk 0:02:55]} 16. Nc1 {[%clk 0:02:55]}  f5 {[%clk 0:02:42]} 17. gxf6 {[%clk 0:02:41]}  Bxf6 {[%clk 0:02:41]} 18. Ne2 {[%clk 0:02:32]}  Rb8 {[%clk 0:02:24]} 19. Bh3 {[%clk 0:02:31]}  a4 {[%clk 0:02:20]} 20. Bg4 {[%clk 0:02:26]}  Nf4 {[%clk 0:02:00]} 21. Bxd7 {[%clk 0:01:42]}  Qxd7 {[%clk 0:01:59]} 22. Bxf4 {[%clk 0:01:42]}  exf4 {[%clk 0:01:59]} 23. Nd4 {[%clk 0:01:43]}  a3 {[%clk 0:01:42]} 24. b3 {[%clk 0:01:42]}  Rfe8 {[%clk 0:01:29]} 25. Ne6 {[%clk 0:01:37]}  Qa7 {[%clk 0:01:17]} 26. Rhg1 {[%clk 0:01:30]}  Be5 {[%clk 0:01:10]} 27. h4 {[%clk 0:01:27]}  Re7 {[%clk 0:01:08]} 28. h5 {[%clk 0:01:27]}  Qb6 {[%clk 0:00:47]} 29. h6 {[%clk 0:01:26]}  g6 {[%clk 0:00:47]} 30. Nxf4 {[%clk 0:01:17]}  Rf8 {[%clk 0:00:34]} 31. Ne6 {[%clk 0:01:06]}  Rxf3 {[%clk 0:00:34]} 32. Rgf1 {[%clk 0:01:00]}  Ref7 {[%clk 0:00:34]} 33. Qe2 {[%clk 0:00:48]}  Qe3 {[%clk 0:00:20]} 34. Qb5 {[%clk 0:00:37]}  Rxf1 {[%clk 0:00:15]} 35. Rxf1 {[%clk 0:00:37]}  Rxf1+ {[%clk 0:00:10]} 36. Qxf1 {[%clk 0:00:25]}  Qxh6 {[%clk 0:00:10]} 37. Nd8 {[%clk 0:00:13]}  Qf4 {[%clk 0:00:09]} 38. Qd1 {[%clk 0:00:08]}  Qd4 {[%clk 0:00:09]} 39. Qxd4 {[%clk 0:00:07]}  Bxd4 {[%clk 0:00:09]} 40. Ne6 {[%clk 0:00:08]}  Bc3 {[%clk 0:00:09]} 41. Kc1 {[%clk 0:00:09]}  h5 {[%clk 0:00:08]} 42. Kd1 {[%clk 0:00:09]}  Kf7 {[%clk 0:00:08]} 43. Ke2 {[%clk 0:00:10]}  Kf6 {[%clk 0:00:08]} 44. Kf3 {[%clk 0:00:11]}  g5 {[%clk 0:00:09]} 45. Kg3 {[%clk 0:00:11]}  Be5+ {[%clk 0:00:08]} 46. Kh3 {[%clk 0:00:11]}  g4+ {[%clk 0:00:08]} 47. Kg2 {[%clk 0:00:12]}  h4 {[%clk 0:00:08]} 48. Kf2 {[%clk 0:00:10]}  h3 {[%clk 0:00:09]} 0-1


[Site "https://www.chess.com"]

[Event "Titled Tuesday Blitz January 10 Early 2023"]
[White "Guzman, Christopher"]
[Black "Girsh, Daniel"]
[WhiteFideId "6405096"]
[BlackFideId "30949190"]
[WhiteElo "2271"]
[BlackElo "2123"]
[Result "0-1"]
[Round "03"]
[TimeControl "180+2"]
[Date "2023.01.10"]
[WhiteClock "0:02:56"]
[BlackClock "0:02:58"]

1. e4 {[%clk 0:03:00]}  c5 {[%clk 0:03:00]} 2. Nf3 {[%clk 0:02:59]}  d6 {[%clk 0:03:00]} 3. d4 {[%clk 0:02:59]}  cxd4 {[%clk 0:03:01]} 4. Nxd4 {[%clk 0:03:00]}  Nf6 {[%clk 0:03:02]} 5. Nc3 {[%clk 0:03:00]}  a6 {[%clk 0:03:03]} 6. h4 {[%clk 0:02:59]}  e5 {[%clk 0:03:02]} 7. Nb3 {[%clk 0:02:59]}  Be7 {[%clk 0:03:01]} 8. Bg5 {[%clk 0:02:59]}  Be6 {[%clk 0:03:01]} 9. g3 {[%clk 0:02:59]}  b5 {[%clk 0:02:59]} 10. Qg4 {[%clk 0:02:56]}  Bxg4 {[%clk 0:02:58]} 0-1


[Site "https://www.chess.com"]

[Event "Titled Tuesday Blitz January 10 Early 2023"]
[White "Mohamed Anees M"]
[Black "Gonzalez, Francisco Silva"]
[WhiteFideId "35065815"]
[BlackFideId "1512285"]
[WhiteElo "2315"]
[BlackElo "2021"]
[Result "1-0"]
[Round "03"]
[TimeControl "180+2"]
[Date "2023.01.10"]
[WhiteClock "0:02:09"]
[BlackClock "0:01:23"]

1. c4 {[%clk 0:03:00]}  e6 {[%clk 0:02:53]} 2. Nc3 {[%clk 0:02:58]}  d5 {[%clk 0:02:52]} 3. d4 {[%clk 0:02:58]}  a6 {[%clk 0:02:51]} 4. cxd5 {[%clk 0:02:55]}  exd5 {[%clk 0:02:51]} 5. Nf3 {[%clk 0:02:56]}  Nf6 {[%clk 0:02:50]} 6. Bf4 {[%clk 0:02:56]}  Be6 {[%clk 0:02:51]} 7. Rc1 {[%clk 0:02:55]}  Bd6 {[%clk 0:02:51]} 8. Ne5 {[%clk 0:02:55]}  O-O {[%clk 0:02:50]} 9. e3 {[%clk 0:02:55]}  Nbd7 {[%clk 0:02:49]} 10. Bd3 {[%clk 0:02:55]}  Qe7 {[%clk 0:02:45]} 11. Bg3 {[%clk 0:02:52]}  c5 {[%clk 0:02:43]} 12. O-O {[%clk 0:02:47]}  cxd4 {[%clk 0:02:36]} 13. exd4 {[%clk 0:02:46]}  Rfc8 {[%clk 0:02:29]} 14. f4 {[%clk 0:02:46]}  Nb6 {[%clk 0:02:27]} 15. Re1 {[%clk 0:02:40]}  Qf8 {[%clk 0:02:26]} 16. Bh4 {[%clk 0:02:38]}  Be7 {[%clk 0:02:15]} 17. Qb3 {[%clk 0:02:33]}  Nc4 {[%clk 0:02:07]} 18. f5 {[%clk 0:02:32]}  Bc5 {[%clk 0:01:50]} 19. dxc5 {[%clk 0:02:26]}  Ng4 {[%clk 0:01:49]} 20. Nxg4 {[%clk 0:02:21]}  d4 {[%clk 0:01:43]} 21. fxe6 {[%clk 0:02:20]}  Nd2 {[%clk 0:01:41]} 22. exf7+ {[%clk 0:02:15]}  Kh8 {[%clk 0:01:42]} 23. Qe6 {[%clk 0:02:11]}  dxc3 {[%clk 0:01:40]} 24. Be7 {[%clk 0:02:10]}  cxb2 {[%clk 0:01:35]} 25. Rcd1 {[%clk 0:02:09]}  Rc6 {[%clk 0:01:32]} 26. Bxf8 {[%clk 0:02:07]}  Rxe6 {[%clk 0:01:31]} 27. Rxe6 {[%clk 0:02:08]}  Rxf8 {[%clk 0:01:29]} 28. Re8 {[%clk 0:02:08]}  g6 {[%clk 0:01:27]} 29. Rxf8+ {[%clk 0:02:08]}  Kg7 {[%clk 0:01:27]} 30. Rb8 {[%clk 0:02:08]}  Kxf7 {[%clk 0:01:27]} 31. Rxd2 {[%clk 0:02:08]}  b1=N {[%clk 0:01:26]} 32. Bxb1 {[%clk 0:02:08]}  h5 {[%clk 0:01:25]} 33. Rd6 {[%clk 0:02:08]}  Ke7 {[%clk 0:01:23]} 34. Rxb7+ {[%clk 0:02:09]}  Ke8 {[%clk 0:01:23]} 35. Bxg6+ {[%clk 0:02:09]} 1-0


[Site "https://www.chess.com"]

[Event "Titled Tuesday Blitz January 10 Early 2023"]
[White "Yaksin, Oleg"]
[Black "Perez Rodriguez, Luis Manuel"]
[WhiteFideId "24105880"]
[BlackFideId "3503364"]
[WhiteElo "2389"]
[BlackElo "2329"]
[Result "1-0"]
[Round "03"]
[TimeControl "180+2"]
[Date "2023.01.10"]
[WhiteClock "0:00:54"]
[BlackClock "0:01:18"]

1. d4 {[%clk 0:02:55]}  d5 {[%clk 0:02:59]} 2. c4 {[%clk 0:02:55]}  c6 {[%clk 0:02:58]} 3. Nf3 {[%clk 0:02:55]}  Nf6 {[%clk 0:02:59]} 4. Qb3 {[%clk 0:02:56]}  dxc4 {[%clk 0:02:58]} 5. Qxc4 {[%clk 0:02:57]}  g6 {[%clk 0:02:58]} 6. Nc3 {[%clk 0:02:53]}  Bg7 {[%clk 0:02:58]} 7. Bg5 {[%clk 0:02:53]}  O-O {[%clk 0:02:58]} 8. e4 {[%clk 0:02:53]}  b5 {[%clk 0:02:57]} 9. Qb3 {[%clk 0:02:53]}  a5 {[%clk 0:02:57]} 10. Be2 {[%clk 0:02:44]}  b4 {[%clk 0:02:54]} 11. Bxf6 {[%clk 0:02:39]}  exf6 {[%clk 0:02:49]} 12. Na4 {[%clk 0:02:37]}  Re8 {[%clk 0:02:40]} 13. Qc2 {[%clk 0:02:26]}  Qe7 {[%clk 0:02:34]} 14. Nb6 {[%clk 0:02:20]}  Ra7 {[%clk 0:02:26]} 15. O-O {[%clk 0:02:01]}  Be6 {[%clk 0:02:15]} 16. Rfe1 {[%clk 0:01:51]}  f5 {[%clk 0:02:03]} 17. exf5 {[%clk 0:01:42]}  Bxf5 {[%clk 0:01:58]} 18. Bd3 {[%clk 0:01:42]}  Be6 {[%clk 0:01:56]} 19. Bc4 {[%clk 0:01:14]}  Qf6 {[%clk 0:01:22]} 20. Bxe6 {[%clk 0:01:13]}  Rxe6 {[%clk 0:01:22]} 21. Rxe6 {[%clk 0:01:13]}  Qxe6 {[%clk 0:01:23]} 22. Re1 {[%clk 0:01:12]}  Qxa2 {[%clk 0:01:17]} 23. Re8+ {[%clk 0:01:08]}  Bf8 {[%clk 0:01:17]} 24. g3 {[%clk 0:01:00]}  Nd7 {[%clk 0:01:17]} 25. Nxd7 {[%clk 0:00:55]}  Rxd7 {[%clk 0:01:18]} 26. Qc5 {[%clk 0:00:54]} 1-0


[Site "https://www.chess.com"]

[Event "Titled Tuesday Blitz January 10 Early 2023"]
[White "Khripachenko, Alexander"]
[Black "Jumanov, Elbek"]
[WhiteFideId "54184975"]
[BlackFideId "14202905"]
[WhiteElo "2110"]
[BlackElo "2155"]
[Result "1-0"]
[Round "03"]
[TimeControl "180+2"]
[Date "2023.01.10"]
[WhiteClock "0:00:59"]
[BlackClock "0:00:45"]

1. e4 {[%clk 0:03:00]}  c5 {[%clk 0:02:58]} 2. Nf3 {[%clk 0:03:01]}  e6 {[%clk 0:02:57]} 3. d4 {[%clk 0:03:01]}  cxd4 {[%clk 0:02:57]} 4. Nxd4 {[%clk 0:03:02]}  Nf6 {[%clk 0:02:57]} 5. Nc3 {[%clk 0:03:01]}  d6 {[%clk 0:02:57]} 6. g4 {[%clk 0:03:01]}  h6 {[%clk 0:02:58]} 7. Be3 {[%clk 0:02:58]}  Nc6 {[%clk 0:02:58]} 8. Be2 {[%clk 0:02:56]}  Be7 {[%clk 0:02:57]} 9. h4 {[%clk 0:02:56]}  a6 {[%clk 0:02:55]} 10. Rg1 {[%clk 0:02:50]}  g6 {[%clk 0:02:55]} 11. g5 {[%clk 0:02:47]}  hxg5 {[%clk 0:02:54]} 12. hxg5 {[%clk 0:02:47]}  Nd7 {[%clk 0:02:54]} 13. f4 {[%clk 0:02:47]}  Qc7 {[%clk 0:02:50]} 14. Qd2 {[%clk 0:02:40]}  b5 {[%clk 0:02:48]} 15. Nxc6 {[%clk 0:02:38]}  Qxc6 {[%clk 0:02:48]} 16. Qd4 {[%clk 0:02:35]}  e5 {[%clk 0:02:40]} 17. Qd2 {[%clk 0:02:34]}  Nc5 {[%clk 0:02:29]} 18. Bf3 {[%clk 0:02:26]}  Be6 {[%clk 0:02:19]} 19. O-O-O {[%clk 0:02:25]}  b4 {[%clk 0:02:13]} 20. Nd5 {[%clk 0:02:25]}  Rc8 {[%clk 0:01:24]} 21. f5 {[%clk 0:02:11]}  Bxd5 {[%clk 0:01:17]} 22. exd5 {[%clk 0:02:10]}  Qa4 {[%clk 0:01:17]} 23. Kb1 {[%clk 0:01:23]}  gxf5 {[%clk 0:01:17]} 24. g6 {[%clk 0:01:23]}  fxg6 {[%clk 0:01:17]} 25. Rxg6 {[%clk 0:01:23]}  Rh3 {[%clk 0:01:17]} 26. Qg2 {[%clk 0:01:19]}  Rxf3 {[%clk 0:00:52]} 27. Qxf3 {[%clk 0:01:16]}  Ne4 {[%clk 0:00:52]} 28. Rg8+ {[%clk 0:01:11]}  Bf8 {[%clk 0:00:50]} 29. Rxf8+ {[%clk 0:01:08]}  Kxf8 {[%clk 0:00:48]} 30. Qxf5+ {[%clk 0:01:09]}  Ke7 {[%clk 0:00:45]} 31. Qxc8 {[%clk 0:00:59]} 1-0


[Site "https://www.chess.com"]